Cogmind - Beta 15 @@@ ROGUE MODE // 2025.05.18 @ 12:33:24 Player: TheRandomBlokkieZ Result: Core destroyed Performance ------------- Evolutions (1) 500 Regions Visited (3) 600 Robots Destroyed (44) 220 Value Destroyed (1212) 1212 Prototype IDs (2) 40 Alien Tech Used (0) 0 Bonus (551) 551 TOTAL SCORE: 3123 Bonus ------- Pacifist 200 Follower Combat Kills 381 Friendly Fire -30 Cogmind --------- Core Integrity 0/400 Matter 300/300 Energy 224/265 System Corruption 1% Temperature Critical (518) Movement Walking (190) Ox1 Location -9/Storage Parts ------- > --- POWER (2) -------- Improved Ion Engine > --- PROPULSION (3) --- Aluminum Leg Aluminum Leg Improved Aluminum Leg > --- UTILITY (2) ------ Large Storage Unit Utility Shielding (fused) > --- WEAPON (2) ------- Particle Gun Advanced Beam Cannon > --- INVENTORY (15) --- Hover Unit Flight Unit VTOL Module VTOL Module VTOL Module Heat Sink Visual Processing Unit Targeting Computer Utility Shielding Shield Generator Shield Generator Shield Generator Improved EM Shotgun Medium Laser Grenade Launcher Peak State ------------ > --- POWER ------------ Improved Ion Engine Light Nuclear Core > --- PROPULSION ------- Aluminum Leg Aluminum Leg Improved Aluminum Leg > --- UTILITY ---------- Large Storage Unit Utility Shielding > --- WEAPON ----------- Particle Gun Advanced Beam Cannon > --- INVENTORY -------- Hover Unit Flight Unit VTOL Module VTOL Module VTOL Module Heat Sink Visual Processing Unit Targeting Computer Utility Shielding Shield Generator Shield Generator Shield Generator Improved EM Shotgun Medium Laser Grenade Launcher [Rating: 18] Favorites ----------- Power Improved Ion Engine Engine Improved Ion Engine Power Core Light Nuclear Core Propulsion Light Treads Treads Light Treads Leg Aluminum Leg Utility Utility Shielding Storage Large Storage Unit Protection Utility Shielding Weapon Medium Laser Energy Gun Medium Laser Energy Cannon Advanced Beam Cannon Ballistic Gun Heavy Assault Rifle Build | -11 -10 -9 -9 ------- Run | Yrd Mat Mat Sto Slots Evolved 2 | . . 2 . Power 1 | . . 1 . Propulsion 1 | . . 1 . Utility . | . . . . Weapon . | . . . . Parts Attached 37 | 6 . 22 9 Power 8 | 1 . 5 2 Engine 7 | 1 . 5 1 Core 1 | . . . 1 Reactor . | . . . . Propulsion 15 | 2 . 9 4 Treads 7 | 2 . 5 . Leg 8 | . . 4 4 Wheel . | . . . . Hover . | . . . . Flight . | . . . . Utility 4 | 1 . 3 . Device . | . . . . Storage 3 | 1 . 2 . Processor . | . . . . Hackware . | . . . . Protection 1 | . . 1 . Artifact . | . . . . Weapon 10 | 2 . 5 3 Energy Gun 5 | 1 . 2 2 Energy Cannon 1 | . . . 1 Ballistic Gun 4 | 1 . 3 . Ballistic Cannon . | . . . . Launcher . | . . . . Special Weapon . | . . . . Impact Weapon . | . . . . Slashing Weapon . | . . . . Piercing Weapon . | . . . . Special Melee Weapon . | . . . . Unidentified Prototypes 2 | . . . 2 Parts Lost 11 | . . 11 . Power 4 | . . 4 . Propulsion 3 | . . 3 . Utility . | . . . . Weapon 4 | . . 4 . Highest Loss Streak 5 | . . 5 . To Critical Strikes . | . . . . Average Backups 9 | 1 4 7 14 Power . | . 1 . . Propulsion 3 | . . 2 5 Utility 3 | . . 3 6 Weapon 1 | . 1 1 2 Tool/Special . | . . . . Unused Backups 15 | . . 1 14 Power . | . . . . Propulsion 5 | . . . 5 Utility 8 | . . 1 7 Weapon 2 | . . . 2 Tool/Special . | . . . . Average Slot Usage (%) 88 | . 85 86 92 Engine 14 | . 14 16 11 Core 2 | . . . 6 Treads 16 | . 28 24 . Leg 12 | . . 2 32 Storage 11 | . 14 11 11 Protection 9 | . . 10 11 Energy Gun 11 | . 14 12 9 Energy Cannon 2 | . . . 6 Ballistic Gun 7 | . 14 7 4 Peak Build Rating 18 | 6 6 15 18 Average Rating 11 | 4 6 10 14 On Entrance 5 | . 6 6 10 Naked Turns . | . . . . Heaviest Build 40 | 14 14 40 40 Greatest Support 66 | 40 40 66 33 Greatest Overweight (x) 3 | 3 . 1 1 Average Overweight (x) . | . . . . Largest Inventory Capacity 15 | 8 8 15 15 Average Capacity 11 | 7 8 11 15 Most Carried 15 | 2 5 12 15 Average Carried 9 | 1 4 7 14 Final Capacity 15 | 8 8 15 15 Final Carried 15 | 2 5 11 15 Class Distribution -------------------- 55% | Mutant 33% | Scavenger-Mutant 10% | Commander-Mutant Dominant Class ---------------- Mutant | -10/Materials Mutant | -9/Materials Scavenger-Mutant | -9/Storage Resources | -11 -10 -9 -9 ----------- Run | Yrd Mat Mat Sto Matter Collected 1033 | 179 54 589 211 Remotely . | . . . . Salvage Created 1579 | . . 993 586 Parts 87 | . . 56 31 Haulers Intercepted 2 | . . 1 1 Recyclers Shooed 3 | . . 2 1 Parts Field Recycled . | . . . . Retrieved Matter . | . . . . Parts Self-Destructed . | . . . . Prevented . | . . . . Kills | -11 -10 -9 -9 ------- Run | Yrd Mat Mat Sto Combat Hostiles Destroyed 34 | . . 21 13 Guns 32 | . . 21 11 Cannons 2 | . . . 2 Classes Destroyed 10 | . . 8 2 Worker 3 | . . 3 . Builder 1 | . . 1 . Hauler 2 | . . 1 1 Watcher 4 | . . 4 . Swarmer 5 | . . 5 . Grunt 19 | . . 10 9 Brawler 1 | . . . 1 Duelist 3 | . . 2 1 Protector 1 | . . . 1 Sentry 5 | . . 4 1 Best Kill Streak 6 | . . 4 6 Combat Bots Only 6 | . . 3 6 Max Kills in Single Turn 1 | . . 1 1 Gunslinging . | . . . . Exploded . | . . . . Melee . | . . . . Uniques/NPCs Destroyed . | . . . . Combat | -11 -10 -9 -9 -------- Run | Yrd Mat Mat Sto Hostile Shots Fired 292 | . . 229 63 Missed 77 | . . 56 21 Hits 215 | . . 173 42 Melee 8 | . . 7 1 Projectile 207 | . . 166 41 Critical Strikes 5 | . . 4 1 Damage Taken 2663 | . . 2114 549 Core 429 | . . 293 136 Absorbed by Shields . | . . . . Redirected to Shielding 8 | . . 5 3 Core Remaining (%) 100 | 100 100 . . Volleys Fired 195 | . 3 136 56 Largest 2 | . 2 2 2 Hottest 133 | . 70 106 133 Shots Fired 307 | . 6 208 93 Gun 297 | . 6 208 83 Cannon 10 | . . . 10 Launcher . | . . . . Special . | . . . . Kinetic 179 | . 3 143 33 Thermal 128 | . 3 65 60 Explosive . | . . . . Electromagnetic . | . . . . Robot Hit Streak 16 | . 3 16 9 Robot Miss Streak 6 | . 2 6 4 Penetration Max . | . . . . Secondary Targets 5 | . . 3 2 Max Gunslinging Chain 1 | . . 1 1 Shots Hit Robots 171 | . 3 115 53 Core Hits 78 | . . 52 26 Critical Kills . | . . . . Critical Parts Destroyed . | . . . . Critical Strikes 9 | . 1 5 3 Burn 9 | . 1 5 3 Melee Attacks . | . . . . Impact . | . . . . Slashing . | . . . . Piercing . | . . . . Sneak Attacks . | . . . . Combat Hostiles . | . . . . Follow-up Attacks . | . . . . Damage Inflicted 2625 | . 26 1683 916 Guns 2517 | . 26 1683 808 Cannons 102 | . . . 102 Explosions . | . . . . Melee . | . . . . Ramming 6 | . . . 6 Kinetic 1440 | . 13 1131 296 Thermal 1179 | . 13 552 614 Explosive . | . . . . Electromagnetic . | . . . . Impact . | . . . . Slashing . | . . . . Piercing . | . . . . Highest Corruption 1 | . . 1 1 Average Corruption 1 | . . 1 1 Corruption Purged . | . . . . Corruption Blocked . | . . . . Effects 6 | . . 4 2 Message Errors 1 | . . 1 . Matter Fused 1 | . . 1 . Heat Flow Errors 1 | . . 1 . Energy Discharges 1 | . . . 1 Parts Fused 1 | . . 1 . Weapon Failures 1 | . . . 1 Overload Shots . | . . . . Overflow Damage . | . . . . Projectiles . | . . . . Explosions . | . . . . Melee . | . . . . Knockbacks . | . . . . Impact . | . . . . Kinetic . | . . . . Secondary . | . . . . Self-Inflicted Damage . | . . . . Shots . | . . . . Rammed . | . . . . Targets Rammed 1 | . . . 1 Kicked 1 | . . . 1 Crushed . | . . . . Highest Temperature 518 | . 9 468 518 Average Temperature 153 | . 6 131 197 Received Heat Transfer 876 | . . 639 237 Effects 22 | . . 12 10 Shutdowns 7 | . . 5 2 Energy Bleed 1 | . . . 1 Interference 7 | . . 4 3 Matter Decay 1 | . . 1 . Short Circuit 2 | . . 1 1 Damage (minor) 1 | . . 1 . Damage (major) 2 | . . . 2 Damage (core) 1 | . . . 1 Siege Activations . | . . . . Martial Activations . | . . . . Shielding Activations . | . . . . Robots Disrupted . | . . . . Combat Hostiles . | . . . . Robots Corrupted . | . . . . Combat Hostiles . | . . . . Parts Fried . | . . . . Impact Corruptions . | . . . . Robots Melted . | . . . . Combat Hostiles . | . . . . Parts Melted 10 | . . 6 4 Heat Transferred 3695 | . 111 1961 1623 Parts Sabotaged . | . . . . Parts Stolen . | . . . . Parts Stripped . | . . . . Power Chain Reactions . | . . . . Alert | -11 -10 -9 -9 ------- Run | Yrd Mat Mat Sto Maximum Alert Level 1 | . . . 1 Low Security (%) 95 | 100 100 100 86 Level 1 4 | . . . 13 Level 2 . | . . . . Level 3 . | . . . . Level 4 . | . . . . Level 5 . | . . . . High Security . | . . . . Max Security . | . . . . Peak Influence 237 | . 7 97 237 Initial 26 | . . . 26 Average 47 | . . 38 81 Influence Increases 1323 | . 7 592 724 Destroy 0b10 Robot/C 920 | . . 420 500 Destroy 0b10 Robot/NC 65 | . . 45 20 Destroy Leader 202 | . . 100 102 Allied During Kill 86 | . . . 86 Successful Hack 19 | . 7 12 . Destroy Structure 1 | . . . 1 Lose Combat Pursuer 30 | . . 15 15 Influence Decreases 1205 | . 7 530 668 Entered New Map 36 | . . . 36 Time Decay 594 | . 7 345 242 Lost Part 110 | . . 110 . Lost Ally 240 | . . . 240 Purge Threat 225 | . . 75 150 Squads Dispatched 5 | . . 1 4 Investigation 1 | . . 1 . Extermination . | . . . . Reinforcement 2 | . . . 2 Assault 2 | . . . 2 Garrison . | . . . . Intercept . | . . . . Searches Triggered . | . . . . Construction Impeded . | . . . . Haulers Reinforced . | . . . . Active Scanning Responses . | . . . . Cargo Convoy Interrupts . | . . . . Stealth | -11 -10 -9 -9 --------- Run | Yrd Mat Mat Sto Distress Signals 7 | . . 5 2 Communications Jammed . | . . . . Distress Signals . | . . . . Times Spotted 69 | . 1 31 37 Peak Tracking Total 6 | . 2 6 6 Tactical Retreats 2 | . . 1 1 Traps | -11 -10 -9 -9 ------- Run | Yrd Mat Mat Sto Traps Triggered 2 | . . 2 . Indirectly . | . . . . Trap Hack Attempts . | . . . . Triggered . | . . . . Disarmed 6 | . . . 6 Reprogrammed . | . . . . Reused . | . . . . Traps Extracted . | . . . . Installed . | . . . . Triggered . | . . . . Machines | -11 -10 -9 -9 ---------- Run | Yrd Mat Mat Sto Machines Disabled . | . . . . Max in Single Turn . | . . . . Garrison Access 1 | . . . 1 Machines Repaired . | . . . . Machines Dismantled . | . . . . Machines Sabotaged . | . . . . Overloaded Fab Kills . | . . . . Hacking | -11 -10 -9 -9 --------- Run | Yrd Mat Mat Sto Machines Accessed 10 | . 1 4 5 Terminals 8 | . 1 3 4 Fabricators . | . . . . Repair Stations . | . . . . Recycling Units 1 | . . 1 . Scanalyzers . | . . . . Garrison Access 1 | . . . 1 Total Hacks 32 | . 1 12 19 Successful 11 | . 1 4 6 Failed 21 | . . 8 13 Catastrophic 4 | . . 2 2 Database Lockouts . | . . . . Manual 24 | . 1 9 14 Terminals 28 | . 1 10 17 Fabricators . | . . . . Repair Stations . | . . . . Recycling Units 2 | . . 2 . Scanalyzers . | . . . . Garrison Access 2 | . . . 2 Terminal Hacks 9 | . 1 3 5 Open Door 1 | . . . 1 Alert Level 1 | . . . 1 Unreport Threat 5 | . 1 2 2 Disarm Traps 1 | . . . 1 Zone Layout 1 | . . 1 . Fabricator Hacks . | . . . . Repair Station Hacks . | . . . . Recycling Unit Hacks 1 | . . 1 . Process 1 | . . 1 . Scanalyzer . | . . . . Garrison Access Hacks 1 | . . . 1 Seal Access 1 | . . . 1 Unauthorized Hacks . | . . . . Terminals . | . . . . Fabricators . | . . . . Repair Stations . | . . . . Recycling Units . | . . . . Scanalyzers . | . . . . Garrison Access . | . . . . Data Cores Recovered . | . . . . Used . | . . . . Hacking Detections 9 | . . 4 5 Full Trace Events 2 | . . 1 1 Feedback Events . | . . . . Feedback Blocked . | . . . . Robot Schematics Acquired . | . . . . Robots Built . | . . . . Authchips . | . . . . Time . | . . . . Total Robot Build Rating . | . . . . Part Schematics Acquired . | . . . . Parts Built . | . . . . Authchips . | . . . . Time . | . . . . Total Part Build Rating . | . . . . Parts Repaired . | . . . . Time . | . . . . Parts Recycled . | . . . . Recycled Matter . | . . . . Retrieved Matter . | . . . . Retrieved Components . | . . . . Parts Scanalyzed . | . . . . Part Schematics Acquired . | . . . . Parts Damaged . | . . . . Bothacking | -11 -10 -9 -9 ------------ Run | Yrd Mat Mat Sto Used RIF Installer . | . . . . Robots Hacked . | . . . . Non-combat . | . . . . Combat . | . . . . Robot Hacks Applied . | . . . . Relay Couplers Released . | . . . . Fabnet Peak Effective % . | . . . . Robots Rewired . | . . . . Allies Hacked . | . . . . Hacks Repelled . | . . . . Allies | -11 -10 -9 -9 -------- Run | Yrd Mat Mat Sto Total Allies 12 | . . . 12 Largest Group 10 | . . . 10 Highest-Rated Group 88 | . . . 88 Highest-Rated Ally 31 | . . . 31 Total Orders . | . . . . Ally Attacks 82 | . . . 82 Total Damage 962 | . . . 962 Kills 15 | . . . 15 Allies Corrupted . | . . . . Allies Melted . | . . . . Intel | -11 -10 -9 -9 ------- Run | Yrd Mat Mat Sto Active Infowar (turns) . | . . . . Robot Analysis Total . | . . . . Derelict Logs Recovered . | . . . . Drone Launches . | . . . . Drone Recoveries . | . . . . Exploration | -11 -10 -9 -9 ------------- Run | Yrd Mat Mat Sto Turns Passed 1912 | 71 150 1080 611 Spaces Moved 791 | 36 87 419 249 Core 9 | 9 . . . Treads 494 | 27 87 380 . Legs 288 | . . 39 249 Wheels . | . . . . Hover . | . . . . Flight . | . . . . Fastest Speed 50 | 50 160 120 120 Average Speed 163 | 161 160 162 164 Slowest Speed 240 | 200 160 240 190 Overloaded Moves . | . . . . Propulsion Burnouts . | . . . . Robots Hopped . | . . . . Potential Cave-ins . | . . . . Cave-ins Triggered . | . . . . Exploration Rate (%) 26 | 4 24 32 45 Regions Visited 3 Branch Regions 1 Pre-discovered Areas . | . . . . Known Exits Taken . | . . . . Unknown Exits Taken 3 | 1 1 1 . Scrap Searched . | . . . . Spaces Dug . | . . . . Terrain Destroyed . | . . . . Melee . | . . . . Projectile . | . . . . AOE . | . . . . Terrain Rammed . | . . . . Walls Destroyed . | . . . . Machines Disabled . | . . . . Actions | -11 -10 -9 -9 --------- Run | Yrd Mat Mat Sto Total 1118 | 49 92 619 358 Wait 37 | . . 7 30 Move 788 | 35 86 418 249 Hop . | . . . . Pick Up 42 | 8 3 25 6 Fast Attach 3 | . . . 3 Attach 22 | 6 . 14 2 Detach . | . . . . Swap 13 | . . 9 4 Drop 17 | . . 10 7 Fire 195 | . 3 136 56 Melee . | . . . . Ram . | . . . . Kick 1 | . . . 1 Crush . | . . . . Escape Stasis . | . . . . Rewire . | . . . . Trap . | . . . . Miscellaneous . | . . . . Route ------- -11/Scrapyard -10/Materials -9/Materials -9/Storage History --------- Turn | Location | Event 42 | -11/Scrapyard | Discovered new exit (range 16) 72 | -11/Scrapyard | Entered Materials 192 | -10/Materials | Discovered new exit (range 14) 222 | -10/Materials | Entered another Materials area 222 | -9/Materials | Evolved 2 slots: Power x1, Propulsion x1 317 | -9/Materials | Build established: Mutant 429 | -9/Materials | Lost 4 parts (1p1n2w) 868 | -9/Materials | Discovered new exit (range 17) 944 | -9/Materials | Core integrity fell below 50% 1155 | -9/Materials | Lost 5 parts (2p2n1w) 1302 | -9/Materials | Entered Storage 1329 | -9/Storage | Met a pair of Derelict thieves 1420 | -9/Storage | Core integrity fell below 20% 1541 | -9/Storage | Build established: Scavenger-Mutant 1612 | -9/Storage | Assisted by bots powering up and referring to "LRC-V3" 1913 | -9/Storage | Lost 9 allies 1914 | -9/Storage | Core destroyed Last Messages --------------- Heat Sink melted. G-34 Mercenary destroyed. U-05 Engineer builds a Door. Power failure, Imp. Ion Engine shutdown. K-01 Serf collects debris. M-13 Machinist repairs M-13 Machinist. K-01 Serf collects debris. Sml. Laser melted. G-34 Mercenary destroyed. Overheating: Adv. Beam Cannon damaged (-80). Overheating: Particle Gun damaged (-19). K-01 Serf collects debris. G-34 Mercenary suffers critical hit (Burn). K-01 Serf collects debris. G-34 Mercenary suffers critical hit (Burn). Overheating: Energy bleed (-55). Overheating: System interference. Particle Gun temporarily disabled. K-01 Serf collects debris. Overheating: Core damaged (-40). Map ----- +----------------------------------------------------+ | ?????????????????????????????????????????????????? | | ?????????????????????????????????????????????????? | | ?????????????????????????????????????????????????? | | ?????????????????????????????????????????????????? | | ?????????????????????????????????????????????????? | | ?????????????????????????????????????????????????? | | ?????????????????????????????????????????????????? | | ?????????????????????????????????????????????????? | | ?????????????????????????????????????????????????? | | ?????????????????????????????????????????????????? | | ???????????????????????##+##?????????????????????? | | ??????????????????????# ?????????????????????? | | ??????????????????????? ?????????????????????? | | ??????????????????????? ?????????????????????? | | ??????????????????????? ?????????????????????? | | ??????????????????????? ?????????????????????? | | ???????????????"T"?????# #?????????????????????? | | ???????????????" "?????# #?????????????????????? | | ??????????????? ????# = #?????????????????????? | | ??????????????? ???# % #?????????????????????? | | ????????????????? ??#===#??????? #????????????? | | ?????????????????""" ?o=%m#????? = #????????????? | | ????????????????"""" #===#???? #????????????? | | ????????????????"""" !#*%[#?? =#????????????? | | ??????????????????"" =+*%=##a !#????????????? | | ???????????????????????#k@%mg% #????????????? | | ???????????????????????#*=%## #????????????? | | ???????????????????#####+#+#####?####????????????? | | ???????????????????#|*[%!=%!%T #?????????????????? | | ????????????????####*!==*!!!*%!#?????????????????? | | ????????????????# ""[""""=""""!#?????????????????? | | ????????????????#"G %""""%"""" #?????????????????? | | ????????????????# "" """"="""" ##????????????????? | | ????????????????####%""""*"""" #????????????????? | | ???????????????????# % = ! ######????????##+## | | ?????????????#######/#####+##+## ########## | | ???????????? / ^ "T" %% | | ?????????????????### ^ % T | | ???????????????????# #### ########## | | ???????????????????# """ ########## #?## ## | | ???????????????????# """ # #???# #??# #? | | ???????????????????# """ # #???# T#??# #? | | ?????????????????? # #????# #???# #? | | ????????????????? # [######+###???# #? | | ???????????????? ##### # / #?????#+## | | ???????????????# #????###### #### #?????#% | | ???????????????# ???????????# ! #??# #?????#$= | | ????????????????????????????# #??# #?????#! | | ????????????????????????????# !#??# #?????# | | ????????????????????????????######??# #?????# | +----------------------------------------------------+ Best States ------------- Heat Dissipation 28 Energy Generation 21 Energy Capacity 430 Matter Stores 300 Matter Capacity 300 Sight Range 16 Terrain Scan Density 10 Utility Shielding 33 Evasion (%) 55 Recoil Reduction 3 Item Schematics ----------------- None Robot Schematics ------------------ None Fabricated ------------ Nothing Repaired ---------- Nothing Alien Tech Used ----------------- None Achievements -------------- None Challenges ------------ None Game ------ Seed BurstShrapnelProcessor Manual? 0 Play Time 00:26:08 Cumulative 4.3 hours Start 2025.05.18 @ 10:58:33 End 2025.05.18 @ 12:33:24 Sessions 3 Manual Loads 0 Difficulty Rogue Special Mode None Game No. 15 Rogue 15 Adventurer 0 Explorer 0 Win Type - Total 0 Types 0/0/0/0/0/0/0/0/0/0 Lore% 7 Gallery% 12 Achievement% 14 Wizard Run 0 Options --------- Layout 1 ASCII 0 Keyboard 0 Movement Mouse Keybinds 0 Fullscreen 1 Font 24/Smallcaps Map View 50x35 Zoom Use 0% Tactical HUD 0 Map Filters NONE Filters NONE Steam 1 RUN: 31342e6a-4166-401d-b07e-fd52daddb6a8